lending/lending_fUSD_20240124
["ID","MTS","AMOUNT","RATE_DAILY","PERIOD"]
[312632520,1706122263954,-207.0,0.0004469,30]
[312632521,1706122263965,-201.0,0.0004469,30]
[312632522,1706122263976,-500.0,0.000447,9]
[312632523,1706122263986,-500.0,0.0004472,9]
[312632524,1706122263996,-500.0,0.0004474,9]
[312632525,1706122264007,-777.0125,0.00044748,16]
[312632526,1706122264019,-500.0,0.0004476,9]
[312632527,1706122264030,-500.0,0.0004478,9]
[312632528,1706122264042,-500.0,0.000448,9]
[312632529,1706122264052,-500.0,0.0004482,10]
[312632530,1706122264064,-2013.56,0.0004484,2]
[312632531,1706122264075,-500.0,0.0004484,10]
[312632532,1706122264086,-777.0125,0.00044848,18]
[312632533,1706122264096,-500.0,0.0004486,10]
[312632534,1706122264107,-500.0,0.0004488,10]
[312632535,1706122264116,-50000.0,0.00044881,30]
[312632536,1706122264564,-50000.0,0.00044881,30]
[312632537,1706122264610,-151.0,0.00044881,14]
[312632538,1706122264643,-151.0,0.00044881,14]
[312632539,1706122264656,-151.0,0.00044881,14]
[312632540,1706122264667,-151.0,0.00044881,14]
[312632541,1706122264677,-180.313812,0.00044881,14]
[312632542,1706122264689,-180.313812,0.00044881,14]
[312632543,1706122264700,-291.573217,0.00044881,14]
[312632544,1706122264711,-291.573217,0.00044881,14]
[312632545,1706122264722,-151.0,0.00044881,14]
[312632546,1706122264733,-151.0,0.00044881,14]
[312632547,1706122264744,-151.0,0.00044881,14]
[312632548,1706122264755,-318.305467,0.00044881,14]
[312632549,1706122264768,-318.305467,0.00044881,14]
[312632550,1706122264779,-500.0,0.000449,10]
[312632551,1706122264790,-209.0,0.00044906,2]
[312632552,1706122264801,-500.0,0.0004492,10]
[312632553,1706122264811,-150.0,0.00044932,2]
[312632554,1706122264822,-150.0,0.00044932,2]
[312632555,1706122264835,-500.0,0.00044938,14]
[312632556,1706122264845,-500.0,0.0004494,10]
[312632557,1706122264856,-777.0125,0.00044948,16]
[312632558,1706122264867,-500.0,0.0004496,10]
[312632559,1706122264877,-690.62068449,0.0004498,3]
[312632560,1706122264890,-292.5,0.0004498,3]
[312632561,1706122264901,-432.54867552,0.0004498,3]
[312632562,1706122264911,-602.02978128,0.0004498,3]
[312632563,1706122264922,-500.0,0.0004498,10]
[312632564,1706122264933,-7526.0,0.0004499,2]
[312632565,1706122264944,-3576.0,0.0004499,2]
[312632566,1706122264953,-26884.73463826,0.00045,4]
[312632567,1706122264963,-500.0,0.00045,7]
[312632568,1706122264973,-2000.0,0.00045,2]
[312632569,1706122264983,-2141.30073761,0.00045,2]
[312632570,1706122264993,-2447.81843351,0.00045,4]
[312632571,1706122265003,-870.34019298,0.00045,30]
[312632572,1706122265013,-950.0,0.00045,3]
[312632573,1706122265023,-930.0,0.00045,2]
[312632574,1706122265032,-33547.0,0.00045,2]
[312632575,1706122265042,-211.02230821,0.00045,2]
[312632576,1706122265053,-500.0,0.00045,10]
[312632578,1706122265066,-450.0,0.0004502,5]
[312632579,1706122265076,-450.0,0.0004502,5]
[312632580,1706122265087,-777.0125,0.00045048,18]
[312632581,1706122265098,-777.0125,0.00045148,16]
[312632582,1706122265109,-481.55,0.00045149,2]
[312632583,1706122265119,-151.0,0.00045177,14]
[312632584,1706122265129,-1377.09257782,0.00045177,2]
[312632585,1706122265139,-1547.0,0.0004519,2]
[312632586,1706122265149,-777.0125,0.00045248,18]
[312632587,1706122265159,-777.0125,0.00045348,16]
[312632588,1706122265170,-500.0,0.00045415,14]
[312632589,1706122265180,-150.0,0.00045422,2]
[312632590,1706122265193,-777.0125,0.00045448,18]
[312632591,1706122265203,-150.0,0.00045479,2]
[312632592,1706122265213,-150.0,0.00045484,2]
[312632593,1706122265223,-150.0,0.00045484,2]
[312632594,1706122265232,-150.0,0.00045484,2]
[312632595,1706122265242,-1551.0,0.000455,4]
[312632596,1706122265253,-151.0,0.00045517,2]
[312632597,1706122265271,-250.49088,0.00045517,2]
[312632598,1706122265280,-500.0,0.0004552,30]
[312632599,1706122265291,-777.0125,0.00045548,16]
[312632600,1706122265304,-152.0,0.00045593,4]
[312632601,1706122265315,-777.0125,0.00045648,18]
[312632602,1706122265325,-205.0,0.00045667,31]
[312632603,1706122265336,-4959.4983354,0.00045689,5]
[312632604,1706122265347,-151.0,0.00045725,14]
[312632605,1706122265357,-777.0125,0.00045748,16]
[312632606,1706122265367,-500.0,0.00045794,30]
[312632607,1706122265377,-777.0125,0.00045848,18]
[312632608,1706122265388,-500.0,0.00045893,14]
[312632609,1706122265399,-150.0,0.000459,30]
[312632610,1706122265409,-150.0,0.000459,30]
[312632611,1706122265419,-150.0,0.000459,30]
[312632612,1706122265429,-150.0,0.000459,30]
[312632613,1706122265440,-150.0,0.000459,30]
[312632614,1706122265449,-150.0,0.000459,30]
[312632615,1706122265459,-150.0,0.000459,30]
[312632616,1706122265469,-271.07815844,0.000459,30]
[312632617,1706122265478,-150.0,0.000459,30]
[312632618,1706122265488,-249.07818881,0.000459,30]
[312632619,1706122265500,-777.0125,0.00045948,16]
[312632620,1706122265510,-150.0,0.00045955,30]
[312632621,1706122265522,-207.0,0.0004596,30]
[312632622,1706122265532,-201.0,0.0004596,30]
[312632623,1706122265542,-208.0,0.0004596,30]
[312632624,1706122265552,-2013.56,0.0004598,2]
[312632625,1706122265561,-150.0,0.00045991,30]
[312632626,1706122265570,-8252.892325,0.00046,14]
[312632627,1706122265579,-8252.892325,0.00046,14]
[312632628,1706122265589,-151.0,0.00046,14]
[312632629,1706122265599,-151.0,0.00046,14]
[312632630,1706122265609,-161.289658,0.00046,14]
[312632631,1706122265619,-161.289658,0.00046,14]
[312632632,1706122265629,-151.0,0.00046,7]
[312632633,1706122265639,-221.608802,0.00046,14]
[312632634,1706122265649,-221.608802,0.00046,14]
[312632635,1706122265658,-385.695419,0.00046,14]
[312632636,1706122265668,-385.695419,0.00046,14]
[312632637,1706122265678,-1338.8216363,0.00046,2]
[312632638,1706122265688,-151.0,0.00046,14]
[312632639,1706122265697,-222.19794637,0.00046,28]
[312632640,1706122265708,-200.0,0.00046,5]
[312632641,1706122265718,-11195.9,0.00046,4]
[312632642,1706122265727,-150.0,0.0004601,30]
[312632643,1706122265737,-152.41515383,0.0004603,29]
[312632644,1706122265748,-777.0125,0.00046048,18]
[312632645,1706122265758,-150.0,0.00046065,30]
[312632646,1706122265769,-150.0,0.00046065,30]
[312632647,1706122265779,-500.0,0.00046068,30]
[312632648,1706122265789,-150.0,0.00046082,30]
[312632649,1706122265799,-166.32,0.000461,7]
[312632650,1706122265808,-150.0,0.00046119,30]
[312632651,1706122265818,-777.0125,0.00046148,20]
[312632652,1706122265827,-5000.0,0.00046164,4]
[312632653,1706122265837,-426.37,0.00046171,2]
[312632654,1706122265847,-150.0,0.00046173,30]
[312632655,1706122265856,-150.0,0.00046174,30]
[312632656,1706122265866,-313.87272339,0.000462,2]
[312632657,1706122265876,-150.0,0.00046229,30]
[312632658,1706122265887,-150.0,0.00046229,30]
[312632659,1706122265897,-777.0125,0.00046248,16]
[312632660,1706122265908,-450.0,0.0004626,5]
[312632661,1706122265918,-450.0,0.0004626,5]
[312632662,1706122265928,-150.0,0.00046264,30]
[312632663,1706122265938,-302.0,0.00046282,4]
[312632664,1706122265948,-150.0,0.00046284,30]
[312632665,1706122265957,-150.0,0.00046325,30]
[312632666,1706122265966,-150.0,0.00046339,30]
[312632667,1706122265976,-500.0,0.00046342,30]
[312632668,1706122265985,-777.0125,0.00046348,18]
[312632669,1706122265994,-150.0,0.00046355,30]
[312632670,1706122266004,-150.0,0.00046364,30]
[312632671,1706122266014,-500.0,0.0004637,14]
[312632672,1706122266024,-150.0,0.00046394,30]
[312632673,1706122266033,-150.0,0.00046394,30]
[312632674,1706122266043,-150.0,0.0004641,30]
[312632675,1706122266053,-150.0,0.00046431,2]
[312632676,1706122266063,-150.0,0.00046446,30]
[312632677,1706122266073,-777.0125,0.00046448,20]
[312632678,1706122266082,-150.0,0.00046448,30]
[312632679,1706122266092,-50000.0,0.00046462,30]
[312632680,1706122266101,-150.0,0.00046503,30]
[312632681,1706122266111,-58955.04824887,0.00046512,8]
[312632682,1706122266121,-150.0,0.00046538,30]
[312632683,1706122266130,-777.0125,0.00046548,16]
[312632684,1706122266139,-150.0,0.00046558,30]
[312632685,1706122266149,-150.0,0.00046558,30]
[312632686,1706122266158,-1543.0,0.0004659,2]
[312632687,1706122266167,-1090.50398216,0.00046593,30]
[312632688,1706122266177,-901.65061432,0.00046593,30]
[312632689,1706122266186,-151.0,0.000466,7]
[312632690,1706122266196,-173.828962,0.000466,7]
[312632691,1706122266205,-332.57745,0.000466,14]
[312632692,1706122266215,-332.57745,0.000466,14]
[312632693,1706122266224,-153.748065,0.000466,14]
[312632694,1706122266234,-153.748065,0.000466,14]
[312632695,1706122266243,-150.0,0.00046613,30]
[312632696,1706122266255,-500.0,0.00046616,30]
[312632697,1706122266274,-150.0,0.00046629,30]
[312632698,1706122266291,-888.0125,0.00046648,18]
[312632699,1706122266300,-150.0,0.00046668,30]
[312632700,1706122266310,-150.0,0.0004672,30]
[312632701,1706122266320,-150.0,0.00046723,30]
[312632702,1706122266330,-150.0,0.00046723,30]
[312632703,1706122266339,-888.0125,0.00046748,16]
[312632704,1706122266348,-150.0,0.0004675,30]
[312632705,1706122266357,-150.0,0.0004675,30]
[312632706,1706122266367,-150.0,0.00046777,30]
[312632707,1706122266376,-150.0,0.00046811,30]
[312632708,1706122266386,-150.0,0.00046827,30]
[312632709,1706122266395,-150.0,0.00046832,30]
[312632710,1706122266406,-500.0,0.00046848,14]
[312632711,1706122266416,-888.0125,0.00046848,20]
[312632712,1706122266425,-150.0,0.00046887,30]
[312632713,1706122266435,-150.0,0.00046887,30]
[312632714,1706122266445,-500.0,0.0004689,30]
[312632715,1706122266454,-1349.0,0.0004689,2]
[312632716,1706122266463,-500.0,0.0004689,30]
[312632717,1706122266472,-150.0,0.00046902,30]
[312632718,1706122266481,-150.0,0.0004692,30]
[312632719,1706122266491,-151.0,0.00046925,14]
[312632720,1706122266501,-50000.0,0.00046925,30]
[312632721,1706122266510,-50000.0,0.00046925,30]
[312632722,1706122266519,-7000.0,0.00046933,2]
[312632723,1706122266528,-150.0,0.00046942,30]
[312632724,1706122266538,-888.0125,0.00046948,18]
[312632725,1706122266547,-160.164885,0.00046984,14]
[312632726,1706122266556,-151.0,0.00046984,14]
[312632727,1706122266566,-150.0,0.00046993,30]
[312632728,1706122266575,-150.0,0.00046997,30]
[312632729,1706122266584,-151.0,0.00047,14]
[312632730,1706122266594,-151.0,0.00047,14]
[312632731,1706122266603,-151.0,0.00047,14]
[312632732,1706122266613,-220.0,0.00047,29]
[312632733,1706122266623,-21241.717744,0.00047,9]
[312632734,1706122266633,-503.4547219,0.00047,30]
[312632735,1706122266643,-1000.0,0.00047,3]
[312632736,1706122266652,-888.0125,0.00047048,16]
[312632737,1706122266662,-150.0,0.00047052,30]
[312632738,1706122266671,-150.0,0.00047052,30]
[312632739,1706122266681,-604.0,0.0004706,7]
[312632740,1706122266690,-150.0,0.00047084,30]
[312632741,1706122266699,-150.0,0.00047106,30]
[312632742,1706122266709,-2013.56,0.0004712,2]
[312632743,1706122266718,-1891.85164773,0.00047125,30]
[312632744,1706122266728,-431.72535829,0.00047125,30]
[312632745,1706122266738,-1636.72356164,0.00047125,30]
[312632746,1706122266747,-369.84489063,0.00047125,30]
[312632747,1706122266757,-888.0125,0.00047148,16]
[312632748,1706122266767,-150.0,0.00047161,30]
[312632749,1706122266777,-500.0,0.00047164,30]
[312632750,1706122266787,-150.0,0.00047175,30]
[312632751,1706122266797,-150.0,0.00047175,30]
[312632752,1706122266806,-150.0,0.00047175,30]
[312632753,1706122266818,-150.0,0.00047216,30]
[312632754,1706122266827,-150.0,0.00047216,30]
[312632755,1706122266837,-207.0,0.0004722,30]
[312632756,1706122266850,-201.0,0.0004722,30]
[312632757,1706122266859,-208.0,0.0004722,30]
[312632758,1706122266868,-213.0,0.0004722,30]
[312632759,1706122266882,-931.40088383,0.0004724,4]
[312632760,1706122266891,-888.0125,0.00047248,18]
[312632761,1706122266902,-150.0,0.00047266,30]
[312632762,1706122266922,-4959.4983354,0.00047268,5]
[312632763,1706122266934,-150.0,0.00047271,30]
[312632764,1706122266956,-150.0,0.00047291,30]
[312632765,1706122266974,-500.0,0.00047325,14]
[312632766,1706122266990,-150.0,0.00047326,30]
[312632767,1706122267008,-888.0125,0.00047348,20]
[312632768,1706122267027,-150.0,0.00047357,30]
[312632769,1706122267037,-150.0,0.00047381,30]
[312632770,1706122267048,-150.0,0.00047381,30]
[312632771,1706122267068,-157.93,0.000474,5]
[312632772,1706122267078,-157.93,0.000474,5]
[312632773,1706122267089,-152.41,0.000474,5]
[312632774,1706122267119,-152.41,0.000474,5]
[312632775,1706122267129,-152.41,0.000474,5]
[312632776,1706122267161,-152.41,0.000474,5]
[312632777,1706122267175,-150.0,0.0004743,30]
[312632778,1706122267189,-150.0,0.00047435,30]
[312632779,1706122267203,-500.0,0.00047438,30]
[312632780,1706122267218,-500.0,0.00047438,30]
[312632781,1706122267230,-150.0,0.0004744,2]
[312632782,1706122267249,-888.0125,0.00047448,18]
[312632783,1706122267269,-150.0,0.00047448,30]
[312632784,1706122267280,-150.0,0.0004749,30]
[312632785,1706122267290,-450.0,0.000475,5]
[312632786,1706122267310,-450.0,0.000475,5]
[312632787,1706122267320,-366.86,0.000475,5]
[312632788,1706122267330,-366.86,0.000475,5]
[312632789,1706122267340,-366.86,0.000475,5]
[312632790,1706122267352,-366.86,0.000475,5]
[312632791,1706122267362,-366.86,0.000475,5]
[312632792,1706122267371,-366.86,0.000475,5]
[312632793,1706122267383,-366.86,0.000475,5]
[312632794,1706122267393,-366.86,0.000475,5]
[312632795,1706122267402,-366.86,0.000475,5]
[312632796,1706122267411,-366.86,0.000475,5]
[312632797,1706122267420,-366.86,0.000475,5]
[312632798,1706122267430,-366.86,0.000475,5]
[312632799,1706122267439,-366.86,0.000475,5]
[312632800,1706122267448,-366.86,0.000475,5]
[312632801,1706122267458,-366.86,0.000475,5]
[312632802,1706122267467,-366.86,0.000475,5]
[312632803,1706122267476,-366.86,0.000475,5]
[312632804,1706122267486,-366.86,0.000475,5]
[312632805,1706122267507,-366.86,0.000475,5]
[312632806,1706122267517,-366.86,0.000475,5]
[312632807,1706122267546,-150.0,0.00047539,30]
[312632808,1706122267556,-150.0,0.00047545,30]
[312632809,1706122267570,-150.0,0.00047545,30]
[312632810,1706122267580,-888.0125,0.00047548,16]
[312632811,1706122267589,-1263.09,0.000476,10]
[312632812,1706122267599,-5070.39192931,0.000476,2]
[312632813,1706122267609,-2764.32363126,0.000476,30]
[312632814,1706122267618,-150.0,0.000476,30]
[312632815,1706122267628,-150.0,0.000476,30]
[312632816,1706122267639,-150.0,0.000476,30]
[312632817,1706122267649,-150.0,0.0004763,30]
[312632818,1706122267660,-888.0125,0.00047648,18]
[312632819,1706122267671,-150.0,0.00047655,30]
[312632820,1706122267683,-150.0,0.0004771,30]
[312632821,1706122267694,-150.0,0.0004771,30]
[312632822,1706122267704,-500.0,0.00047712,30]
[312632823,1706122267715,-150.0,0.00047721,30]
[312632824,1706122267726,-888.0125,0.00047748,20]
[312632825,1706122267736,-150.0,0.00047755,30]
[312632826,1706122267746,-150.0,0.00047765,30]
[312632827,1706122267757,-50000.0,0.00047766,30]
[312632828,1706122267768,-2735.0,0.0004779,2]
[312632829,1706122267779,-500.0,0.00047802,14]
[312632830,1706122267788,-150.0,0.00047813,30]
[312632831,1706122267799,-150.0,0.00047819,30]
[312632832,1706122267809,-179.94,0.00047821,15]
[312632833,1706122267819,-888.0125,0.00047848,18]
[312632834,1706122267830,-1551.0,0.0004785,5]
[312632835,1706122267841,-166.99392,0.00047851,4]
[312632836,1706122267851,-150.0,0.00047874,30]
[312632837,1706122267862,-150.0,0.00047874,30]
[312632838,1706122267872,-29954.0,0.0004789,2]
[312632839,1706122267883,-15358.0,0.0004789,2]
[312632840,1706122267894,-19936.50850437,0.000479,28]
[312632841,1706122267904,-200.0,0.000479,27]
[312632842,1706122267915,-100000.0,0.000479,30]
[312632843,1706122267925,-1000.0,0.000479,2]
[312632844,1706122267937,-151.0,0.000479,14]
[312632845,1706122267948,-151.0,0.000479,14]
[312632846,1706122267958,-151.0,0.000479,14]
[312632847,1706122267969,-270.137925,0.000479,14]
[312632848,1706122267980,-150.0,0.00047904,30]
[312632849,1706122267991,-150.0,0.00047929,30]
[312632850,1706122268002,-150.0,0.0004794,30]
[312632851,1706122268012,-888.0125,0.00047948,16]
[312632852,1706122268024,-133545.6054251,0.00047967,2]
[312632853,1706122268038,-151.0,0.00047967,14]
[312632854,1706122268049,-180.313812,0.00047967,14]
[312632855,1706122268059,-180.313812,0.00047967,14]
[312632856,1706122268070,-291.573217,0.00047967,14]
[312632857,1706122268080,-291.573217,0.00047967,14]
[312632858,1706122268091,-151.0,0.00047967,14]
[312632859,1706122268102,-151.0,0.00047967,14]
[312632860,1706122268112,-151.0,0.00047967,14]
[312632861,1706122268122,-318.305467,0.00047967,14]
[312632862,1706122268133,-318.305467,0.00047967,14]
[312632863,1706122268145,-151.0,0.0004797,14]
[312632864,1706122268156,-150.0,0.00047984,30]
[312632865,1706122268166,-500.0,0.00047986,30]
[312632866,1706122268177,-500.0,0.00047986,30]
[312632867,1706122268188,-17748.83648125,0.0004799,2]
[312632868,1706122268199,-20480.0,0.0004799,2]
[312632869,1706122268414,-9772.0,0.0004799,2]
[312632870,1706122268434,-150.0,0.00047995,30]
[312632871,1706122268445,-36535.60327269,0.00048,2]
[312632872,1706122268459,-23757.2882106,0.00048,10]
[312632873,1706122268471,-307.80205363,0.00048,30]
[312632874,1706122268483,-75280.6097882,0.00048,2]
[312632875,1706122268494,-500.0,0.00048,15]
[312632876,1706122268506,-20000.0,0.00048,10]
[312632877,1706122268518,-3000.0,0.00048,5]
[312632878,1706122268529,-151.0,0.00048,14]
[312632879,1706122268540,-8252.892325,0.00048,14]
[312632880,1706122268551,-8252.892325,0.00048,14]
[312632881,1706122268563,-168.186434,0.00048,14]
[312632882,1706122268575,-151.0,0.00048,14]
[312632883,1706122268586,-161.289658,0.00048,14]
[312632884,1706122268597,-161.289658,0.00048,14]
[312632885,1706122268608,-151.0,0.00048,7]
[312632886,1706122268620,-221.608802,0.00048,14]
[312632887,1706122268631,-221.608802,0.00048,14]
[312632888,1706122268642,-385.695419,0.00048,14]
[312632889,1706122268653,-385.695419,0.00048,14]
[312632890,1706122268668,-151.0,0.00048,14]
[312632891,1706122268680,-150.0,0.00048025,30]
[312632892,1706122268692,-150.0,0.00048039,30]
[312632893,1706122268704,-150.0,0.00048039,30]
[312632894,1706122268716,-888.0125,0.00048048,18]
[312632895,1706122268729,-150.0,0.00048086,30]
[312632896,1706122268741,-150.0,0.00048094,30]
[312632897,1706122268754,-888.0125,0.00048148,20]
[312632898,1706122268766,-150.0,0.00048148,30]
[312632899,1706122268779,-150.0,0.00048177,30]
[312632900,1706122268793,-150.0,0.00048203,30]
[312632901,1706122268806,-150.0,0.00048203,30]
[312632902,1706122268822,-150.0,0.00048218,30]
[312632903,1706122268833,-888.0125,0.00048248,20]
[312632904,1706122268847,-1208.0,0.00048251,30]
[312632905,1706122268859,-150.0,0.00048258,30]
[312632906,1706122268876,-2013.56,0.0004826,2]
[312632907,1706122268892,-150.0,0.00048268,30]
[312632908,1706122268904,-500.0,0.0004828,14]
[312632909,1706122268924,-4124.0,0.0004829,2]
[312632910,1706122268936,-200.0,0.000483,2]
[312632911,1706122268949,-150.0,0.00048313,30]
[312632912,1706122268961,-888.0125,0.00048348,18]
[312632913,1706122268972,-150.0,0.00048359,30]
[312632914,1706122268991,-150.0,0.00048368,30]
[312632915,1706122269002,-150.0,0.00048368,30]
[312632916,1706122269015,-47346.0,0.0004839,2]
[312632917,1706122269029,-22599.0,0.0004839,2]
[312632918,1706122269040,-297.81094704,0.0004839,8]
[312632919,1706122269051,-270485.60768515,0.000484,2]
[312632920,1706122269071,-151.0,0.000484,14]
[312632921,1706122269081,-151.0,0.000484,7]
[312632922,1706122269093,-332.57745,0.000484,14]
[312632923,1706122269105,-332.57745,0.000484,14]
[312632924,1706122269117,-153.748065,0.000484,14]
[312632925,1706122269129,-153.748065,0.000484,14]
[312632926,1706122269140,-150.0,0.00048423,30]
[312632927,1706122269151,-426.37,0.00048435,2]
[312632928,1706122269162,-888.0125,0.00048448,20]
[312632929,1706122269173,-150.0,0.0004845,2]
[312632930,1706122269193,-150.0,0.0004845,30]
[312632931,1706122269204,-150.0,0.0004845,30]
[312632932,1706122269217,-150.0,0.0004845,30]
[312632933,1706122269229,-150.0,0.0004845,30]
[312632934,1706122269246,-150.0,0.0004845,30]
[312632935,1706122269263,-150.0,0.00048477,30]
[312632936,1706122269289,-207.0,0.0004848,30]
[312632937,1706122269304,-201.0,0.0004848,30]
[312632938,1706122269317,-208.0,0.0004848,30]
[312632939,1706122269329,-238.0,0.0004848,30]
[312632940,1706122269341,-213.0,0.0004848,30]
[312632941,1706122269353,-1795.48549327,0.000485,15]
[312632942,1706122269364,-150.0,0.00048532,30]
[312632943,1706122269386,-150.0,0.00048532,30]
[312632944,1706122269398,-500.0,0.00048534,30]
[312632945,1706122269409,-500.0,0.00048534,30]
[312632946,1706122269422,-150.0,0.00048541,30]
[312632947,1706122269432,-151.0,0.00048548,14]
[312632948,1706122269444,-214.077884,0.00048548,14]
[312632949,1706122269455,-151.0,0.00048548,14]
[312632950,1706122269466,-888.0125,0.00048548,18]
[312632951,1706122269477,-150.0,0.00048587,30]
[312632952,1706122269489,-150.0,0.00048632,30]
[312632953,1706122269500,-150.0,0.00048642,30]
[312632954,1706122269511,-888.0125,0.00048648,20]
[312632955,1706122269523,-5000.0,0.00048664,6]
[312632956,1706122269534,-150.0,0.00048682,30]
[312632957,1706122269545,-150.0,0.00048697,30]
[312632958,1706122269562,-150.0,0.00048697,30]
[312632959,1706122269573,-152.0,0.00048714,5]
[312632960,1706122269583,-150.0,0.00048723,30]
[312632961,1706122269597,-450.0,0.0004874,5]
[312632962,1706122269615,-450.0,0.0004874,5]
[312632963,1706122269627,-888.0125,0.00048748,18]
[312632964,1706122269638,-150.0,0.00048752,30]
[312632965,1706122269649,-500.0,0.00048757,14]
[312632966,1706122269659,-150.0,0.00048806,30]
[312632967,1706122269670,-150.0,0.00048814,30]
[312632968,1706122269681,-4959.4983354,0.00048847,5]
[312632969,1706122269695,-888.0125,0.00048848,22]
[312632970,1706122269706,-150.0,0.00048861,30]
[312632971,1706122269716,-150.0,0.00048861,30]
[312632972,1706122269727,-150.0,0.00048875,30]
[312632973,1706122269738,-5200.0,0.0004888,31]
[312632974,1706122269748,-840.56087203,0.00048889,2]
[312632975,1706122269759,-1323.0,0.0004889,2]
[312632976,1706122269769,-200.0,0.000489,28]
[312632977,1706122269782,-151.78418211,0.000489,21]
[312632978,1706122269793,-150.0,0.00048905,30]
[312632979,1706122269804,-150.0,0.00048916,30]
[312632980,1706122269815,-150.0,0.0004896,30]
[312632981,1706122269826,-150.0,0.00048971,30]
[312632982,1706122269836,-15914.0,0.0004899,2]
[312632983,1706122269846,-7943.0,0.0004899,2]
[312632984,1706122269857,-150.0,0.00048996,30]
[312632985,1706122269868,-888.0125,0.00048998,20]
[312632986,1706122269878,-321960.9815707,0.00049,4]
[312632987,1706122269889,-307.80205363,0.00049,31]
[312632988,1706122269901,-26368.0,0.00049,2]
[312632989,1706122269912,-25000.0,0.00049,2]
[312632990,1706122269922,-151.0,0.00049,14]
[312632991,1706122269932,-151.0,0.00049,14]
[312632992,1706122269943,-151.0,0.00049,14]
[312632993,1706122269955,-1050.0,0.00049,3]
[312632994,1706122269965,-157.930629,0.00049,14]
[312632995,1706122269975,-151.0,0.00049,14]
[312632996,1706122269986,-39616.56387777,0.00049,2]
[312632997,1706122269996,-180.313812,0.00049,14]
[312632998,1706122270007,-180.313812,0.00049,14]
[312632999,1706122270017,-291.573217,0.00049,14]
[312633000,1706122270030,-291.573217,0.00049,14]
[312633001,1706122270041,-221.612346,0.00049,14]
[312633002,1706122270052,-151.0,0.00049,14]
[312633003,1706122270062,-151.0,0.00049,14]
[312633004,1706122270073,-318.305467,0.00049,14]
[312633005,1706122270083,-318.305467,0.00049,14]
[312633006,1706122270094,-150.0,0.00049026,30]
[312633007,1706122270105,-150.0,0.00049026,30]
[312633008,1706122270115,-1568.74,0.00049041,2]
[312633009,1706122270126,-150.0,0.00049081,30]
[312633010,1706122270136,-500.0,0.00049082,30]
[312633011,1706122270147,-500.0,0.00049082,30]
[312633012,1706122270158,-150.0,0.00049088,30]
[312633013,1706122270168,-4280.0,0.0004909,2]
[312633014,1706122270178,-2043.0,0.0004909,2]
[312633015,1706122270189,-888.0125,0.00049098,18]
[312633016,1706122270199,-25000.0,0.000491,2]
[312633017,1706122270210,-161.289658,0.000491,14]
[312633018,1706122270220,-161.289658,0.000491,14]
[312633019,1706122270230,-198.868977,0.000491,7]
[312633020,1706122270240,-221.608802,0.000491,14]